bitfinex/quotes_SOLUSD_20250522
["timestamp","ask_amount","ask_price","bid_price","bid_amount"]
[1747916267799,4.20055312,177.48,177.43,26.0]
[1747916267991,4.20055312,177.48,177.44,1.5144]
[1747916268181,4.20055312,177.48,177.45,71.88]
[1747916268426,4.20055312,177.48,177.47,26.0]
[1747916268885,5.63289773,177.53,177.47,26.0]
[1747916270166,4.19820003,177.52,177.47,26.0]
[1747916270777,5.63348543,177.51,177.47,26.0]
[1747916272771,14.08212696,177.53,177.47,26.0]
[1747916273580,4.19604424,177.52,177.47,26.0]
[1747916274365,14.08212696,177.53,177.47,26.0]
[1747916275293,19.71497774,177.53,177.47,26.0]
[1747916276382,4.19390831,177.52,177.47,26.0]
[1747916277081,19.71497774,177.53,177.47,26.0]
[1747916277489,19.71497774,177.53,177.47,25.97139418]
[1747916278400,18.64964886,177.52,177.47,25.97139418]
[1747916279482,5.63348543,177.51,177.47,25.97139418]
[1747916280067,5.63348543,177.51,177.45,38.08]
[1747916280287,19.71719902,177.51,177.45,64.08]
[1747916280485,155.54964886,177.5,177.42,38.06]
[1747916280685,18.64964886,177.48,177.43,33.78]
[1747916280979,18.64964886,177.48,177.42,71.84]
[1747916281385,14.07668319,177.48,177.42,38.06]
[1747916281581,38.37240328,177.46,177.42,38.06]
[1747916281981,52.44908647,177.46,177.42,38.06]
[1747916282483,5.63507269,177.46,177.42,38.06]
[1747916283505,19.72216626,177.47,177.42,38.06]
[1747916283681,18.64964886,177.46,177.42,38.06]
[1747916285596,5.63539025,177.45,177.42,38.06]
[1747916286886,19.72216626,177.47,177.42,38.06]
[1747916293117,32.72633205,177.46,177.37,26.0]
[1747916293297,18.64964886,177.46,177.39,38.06]
[1747916294503,5.63539025,177.45,177.39,38.06]
[1747916294802,19.72386587,177.45,177.39,38.06]
[1747916296394,19.72386587,177.45,177.4,33.78]
[1747916297020,5.63539025,177.45,177.4,33.78]
[1747916297725,5.63454912,177.48,177.4,71.59529542]
[1747916297905,142.53418256,177.49,177.43,26.0]
[1747916298092,5.63418256,177.49,177.44,33.8]
[1747916298722,4.19476591,177.48,177.44,33.8]
[1747916298907,9.82936201,177.48,177.44,33.8]
[1747916299814,5.6345961,177.48,177.44,33.8]
[1747916302032,24.28313429,177.51,177.44,33.8]
[1747916302322,4.19538936,177.5,177.44,33.8]
[1747916303222,4.19538936,177.5,177.43,33.78]
[1747916303520,52.44353107,177.51,177.43,33.78]
[1747916303521,4.19538936,177.49,177.43,33.78]
[1747916303906,4.19538936,177.49,177.43,35.3527]
[1747916304106,5.63348543,177.51,177.43,35.3527]
[1747916305224,4.19750333,177.5,177.43,40.9886945]
[1747916305620,4.19750333,177.5,177.44,26.0]
[1747916305960,4.19750333,177.5,177.45,38.14]
[1747916306129,4.19750333,177.5,177.45,43.7751484]
[1747916306314,5.63348543,177.51,177.45,43.7751484]
[1747916307111,5.63348543,177.51,177.45,38.14]
[1747916308228,5.63316809,177.52,177.45,43.77536305]
[1747916308405,5.63316809,177.52,177.45,38.14]
[1747916308803,4.20101278,177.51,177.45,38.14]
[1747916309418,4.20101278,177.51,177.45,43.77536115]
[1747916309720,4.20101278,177.5,177.45,43.77536115]
[1747916311127,9.83488061,177.5,177.45,38.14]
[1747916311715,18.64964886,177.54,177.45,38.14]
[1747916311923,18.64964886,177.54,177.46,71.92]
[1747916312228,18.64964886,177.54,177.46,97.92]
[1747916312730,14.08212696,177.53,177.46,97.92]
[1747916320963,14.08212696,177.53,177.46,71.92]
[1747916321436,5.63253351,177.54,177.46,77.55502928]
[1747916321826,19.71386729,177.54,177.46,71.92]
[1747916323654,4.20179816,177.53,177.46,71.92]
[1747916324446,19.71386729,177.54,177.46,71.92]
[1747916324616,4.20187829,177.52,177.46,71.92]
[1747916324819,18.64964886,177.53,177.46,38.14]
[1747916325020,4.2016791,177.52,177.47,33.78]
[1747916325443,5.63348543,177.51,177.47,33.78]
[1747916327444,5.63316809,177.52,177.47,33.78]
[1747916328545,5.63316809,177.52,177.47,39.41470385]
[1747916328742,5.63221627,177.55,177.47,71.55670385]
[1747916329634,4.20234863,177.54,177.47,71.55670385]
[1747916329944,9.83497549,177.54,177.47,71.55670385]
[1747916330122,4.20234863,177.54,177.47,71.55670385]
[1747916330323,4.20234863,177.54,177.5,26.0]
[1747916330529,5.63224741,177.55,177.51,33.78]
[1747916331246,19.71113783,177.57,177.51,33.78]
[1747916331425,5.63158191,177.57,177.51,33.78]
[1747916331824,5.63158191,177.57,177.52,38.26]
[1747916332040,4.20067911,177.56,177.52,38.26]
[1747916332956,5.63158191,177.57,177.52,38.26]
[1747916333551,5.63126478,177.58,177.52,38.26]
[1747916336045,19.70942673,177.58,177.52,38.26]
[1747916336358,33.78610992,177.58,177.52,72.04]
[1747916336647,4.19449373,177.57,177.52,72.04]
[1747916336852,18.27117692,177.57,177.52,38.26]
[1747916337022,18.64964886,177.56,177.52,38.26]
[1747916337222,14.07668319,177.54,177.49,33.78]
[1747916337633,14.07668319,177.53,177.47,38.24]
[1747916337825,5.63316809,177.52,177.47,38.24]
[1747916339565,14.08258072,177.53,177.47,38.24]
[1747916340527,18.64964886,177.51,177.47,38.24]
[1747916340724,32.72633205,177.51,177.47,38.24]
[1747916341354,4.19607478,177.5,177.47,38.24]
[1747916341543,5.63412023,177.49,177.47,38.24]
[1747916343657,5.63348543,177.51,177.47,38.24]
[1747916344040,4.19811834,177.5,177.47,38.24]
[1747916344960,19.71719902,177.51,177.47,38.24]
[1747916345740,5.63348543,177.51,177.47,38.24]
[1747916347956,5.63316809,177.52,177.47,38.24]
[1747916348344,4.200628,177.51,177.47,38.24]
[1747916349356,5.63316809,177.52,177.47,38.24]
[1747916349560,19.71608832,177.52,177.47,38.24]
[1747916351066,4.20034976,177.51,177.47,38.24]
[1747916352072,19.71608832,177.52,177.47,38.24]
[1747916353543,136.9,177.53,177.47,38.24]
[1747916353738,46.26110118,177.7,177.5,26.0]
[1747916353739,5.63168201,177.57,177.5,26.0]
[1747916353954,142.53137355,177.58,177.51,33.78]
[1747916354144,5.63063063,177.6,177.54,26.0]
[1747916354348,4.00726472,177.61,177.55,73.601]
[1747916354556,4.20041275,177.6,177.58,26.0]
[1747916354749,4.20041275,177.6,177.59,33.78]
[1747916355763,5.63004773,177.62,177.59,33.78]
[1747916356150,24.27901161,177.64,177.59,33.78]
[1747916356351,5.62936275,177.64,177.59,33.78]
[1747916357644,136.9,177.69,177.62,26.0]
[1747916357854,5.62809545,177.68,177.63,71.8]
[1747916360969,142.52783701,177.69,177.63,77.42959824]
[1747916361555,5.62714534,177.71,177.63,77.42959824]
[1747916362682,136.9,177.72,177.66,26.0]
[1747916362861,5.62582049,177.76,177.7,26.0]
[1747916363051,5.62582049,177.76,177.71,33.76]
[1747916363251,5.62582049,177.76,177.71,34.36559029]
[1747916363579,5.62582049,177.76,177.72,0.60555621]
[1747916363877,5.62526018,177.77,177.72,0.60555621]
[1747916364777,55.97931012,177.87,177.74,26.0]
[1747916364952,14.07668319,177.79,177.73,33.76]
[1747916365152,33.76,177.86,177.73,33.76]
[1747916365153,26.0,177.83,177.73,33.76]
[1747916365374,18.64964886,177.78,177.73,33.76]
[1747916366186,18.64964886,177.76,177.73,33.76]
[1747916366380,18.64964886,177.76,177.72,0.60555621]
[1747916366760,33.76,177.82,177.72,0.60555621]
[1747916366761,18.64964886,177.82,177.72,0.60555621]
[1747916366961,155.54964886,177.82,177.72,0.60555621]
[1747916367467,169.62633205,177.82,177.74,26.0]
[1747916367677,155.54964886,177.82,177.74,59.74]
[1747916368060,155.54964886,177.82,177.75,0.50350896]
[1747916368873,5.62398065,177.81,177.76,37.98]
[1747916370366,5.62398065,177.81,177.76,38.64875323]
[1747916370559,5.62398065,177.81,177.76,37.98]
[1747916370959,155.54964886,177.82,177.76,37.98]
[1747916370960,5.6246133,177.79,177.76,37.98]
[1747916371168,24.27386781,177.81,177.76,37.98]
[1747916371780,5.62271577,177.85,177.76,43.60532769]
[1747916371985,18.64964886,177.84,177.76,43.60532769]
[1747916372161,18.64964886,177.84,177.76,37.98]
[1747916372363,19.69939896,177.85,177.76,37.98]
[1747916372364,14.07668319,177.82,177.77,33.74]
[1747916373386,5.62398065,177.81,177.77,33.74]
[1747916374592,18.64964886,177.8,177.76,71.72]
[1747916375379,5.6246133,177.79,177.76,71.72]
[1747916377582,18.64964886,177.84,177.79,26.0]
[1747916377771,136.9,177.85,177.8,33.74]
[1747916378759,142.52277006,177.85,177.8,33.74]
[1747916379174,136.9,177.85,177.8,33.74]
[1747916379483,136.9,177.85,177.8,39.36428547]
[1747916379864,142.52273771,177.85,177.8,33.74]
[1747916380665,136.9,177.85,177.8,39.3642223]
[1747916381469,5.62247437,177.86,177.8,39.3642223]
[1747916381667,5.6221602,177.87,177.8,39.3642223]
[1747916382071,24.27106114,177.9,177.83,26.0]
[1747916382364,5.62082667,177.91,177.84,71.68]
[1747916382662,5.62042764,177.93,177.87,26.0]
[1747916382864,5.62042764,177.93,177.88,33.72]
[1747916383064,5.61987186,177.94,177.88,33.72]
[1747916385070,18.64964886,177.93,177.88,33.72]
[1747916385599,5.61987186,177.94,177.88,33.72]
[1747916386781,18.64964886,177.97,177.88,39.34176074]
[1747916386986,5.61924027,177.96,177.88,39.34176074]
[1747916387493,18.64964886,177.98,177.91,26.0]
[1747916387704,14.07668319,177.99,177.91,26.0]
[1747916387705,18.64964886,177.96,177.92,33.72]
[1747916388264,18.64964886,177.99,177.92,33.72]
[1747916389086,7.9543,178.01,177.92,33.72]
[1747916389277,38.34430957,178.0,177.92,33.72]
[1747916389481,14.07668319,177.99,177.92,33.72]
[1747916389691,52.38925339,178.0,177.92,33.72]
[1747916389868,14.07668319,177.99,177.92,33.72]
[1747916390070,52.38925339,178.0,177.92,33.72]
[1747916390302,24.26762638,178.0,177.92,33.72]
[1747916390873,5.61797752,178.0,177.92,33.72]
[1747916391208,5.61766192,178.01,177.92,39.34044947]
[1747916391612,5.61740655,178.02,177.95,26.0]
[1747916391811,18.64964886,178.03,177.96,33.7]
[1747916392104,32.72633205,178.03,177.97,38.58]
[1747916392315,5.61671534,178.04,177.97,38.58]
[1747916392883,18.64964886,178.03,177.97,38.58]
[1747916393084,5.61734636,178.02,177.97,38.58]
[1747916395383,5.61639988,178.05,177.97,44.19888142]
[1747916395599,5.61639988,178.05,177.97,38.58]
[1747916395800,24.26604874,178.05,177.97,38.58]
[1747916396514,5.61639988,178.05,177.98,1.6158]
[1747916397083,19.65739959,178.05,177.98,1.6158]
[1747916399193,19.65739959,178.05,177.98,27.6158]
[1747916400111,19.65739959,178.05,177.98,26.0]
[1747916400112,18.64964886,178.04,177.98,26.0]
[1747916400320,14.07668319,178.0,177.94,1.5201]
[1747916400525,32.72633205,177.99,177.94,72.24]
[1747916400902,32.72633205,177.99,177.94,38.56]
[1747916401324,14.07668319,177.98,177.94,38.56]
[1747916401528,32.72633205,177.99,177.94,38.56]
[1747916401739,5.61860883,177.98,177.94,38.56]
[1747916402229,5.61860883,177.98,177.92,98.24]
[1747916402404,5.61860883,177.98,177.92,72.24]
[1747916402826,5.61860883,177.98,177.92,98.24]
[1747916403706,5.61766192,178.01,177.95,26.0]
[1747916403928,5.61671534,178.04,177.99,26.0]
[1747916404231,4.13392743,178.03,177.98,38.56]
[1747916404619,18.64964886,178.02,177.98,38.56]
[1747916405226,14.07668319,178.0,177.98,38.56]
[1747916405417,14.07668319,178.0,177.96,33.68]
[1747916405418,14.07668319,178.02,177.94,72.24]
[1747916405622,5.61766192,178.01,177.94,72.24]
[1747916405921,5.61766192,178.01,177.94,77.85969414]
[1747916406119,5.61766192,178.01,177.94,72.24]
[1747916406324,5.61766192,178.01,177.94,77.85973452]
[1747916407612,5.61734636,178.02,177.94,77.85973452]
[1747916409520,19.69339853,178.04,177.95,31.61941077]
[1747916409718,4.14380197,178.03,177.95,31.61941077]
[1747916410844,19.69339853,178.04,177.95,31.61941077]
[1747916411418,19.69339853,178.04,177.96,0.5]
[1747916411815,5.61671534,178.04,177.97,1.6304]
[1747916412711,5.61671534,178.04,177.97,27.6304]
[1747916412919,5.61576907,178.07,177.98,26.0]
[1747916413236,19.69245226,178.07,177.99,33.68]
[1747916413434,5.61576907,178.07,178.02,26.0]
[1747916413942,5.61576907,178.07,178.0,38.56]
[1747916414315,5.61576907,178.07,178.01,26.0]
[1747916415445,19.69245226,178.07,178.01,26.0]
[1747916415746,33.73187495,178.07,178.01,26.0]
[1747916416248,19.65519176,178.07,178.01,26.0]
[1747916416944,5.61576907,178.07,178.01,26.0]
[1747916417734,32.72633205,178.06,178.0,38.56]
[1747916417947,14.07668319,178.05,178.0,38.56]
[1747916418258,18.64964886,178.06,178.0,38.56]
[1747916418833,32.72633205,178.06,178.0,38.56]
[1747916419230,5.61703083,178.03,178.0,38.56]
[1747916420932,28.07644795,178.09,178.0,44.17796659]
[1747916420933,5.61576907,178.07,178.0,44.17796659]
[1747916421326,5.61545372,178.08,178.0,44.17796659]
[1747916421632,4.163699,178.07,178.0,44.17796659]
[1747916422542,5.61545372,178.08,178.0,44.17796659]
[1747916422929,19.69213691,178.08,178.0,38.56]
[1747916423423,33.73077123,178.08,178.0,38.56]
[1747916424042,4.17007296,178.07,178.0,44.17793845]
[1747916424929,5.61608446,178.06,178.0,44.17793845]
[1747916425533,5.61608446,178.06,178.0,38.56]
[1747916426226,5.61608446,178.06,178.01,0.5]
[1747916427140,5.61608446,178.06,178.03,26.0]
[1747916427443,4.1801531,178.05,178.03,26.0]
[1747916428124,33.73297881,178.06,178.03,26.0]
[1747916428519,33.73297881,178.06,178.0,38.56]
[1747916428520,14.07668319,178.04,178.0,38.56]
[1747916429054,19.69371402,178.03,178.0,38.56]
[1747916429347,23.87579653,178.03,178.0,38.56]
[1747916430350,4.18208251,178.02,178.0,38.56]
[1747916431360,5.61703083,178.03,178.0,38.56]
[1747916432254,14.07668319,178.02,178.0,38.56]
[1747916432759,14.07668319,178.01,177.96,33.68]
[1747916433669,9.80949263,178.0,177.96,33.68]
[1747916434357,4.19151511,177.99,177.96,33.68]
[1747916434739,4.19151511,177.99,177.98,26.0]
[1747916435157,5.61769638,178.01,177.98,26.0]
[1747916435652,52.38593997,178.03,177.98,26.0]
[1747916435830,18.26993481,178.02,177.98,26.0]
[1747916436034,18.26993481,178.02,177.96,33.68]
[1747916436276,14.07668319,178.01,177.95,64.42]
[1747916436452,14.07668319,178.01,177.95,98.1]
[1747916436651,32.72633205,178.0,177.95,64.42]
[1747916436850,36.91958367,178.0,177.95,64.42]
[1747916437051,22.84290048,178.0,177.95,64.42]
[1747916437435,4.19325162,177.99,177.95,64.42]
[1747916437963,5.61860883,177.98,177.95,64.42]
[1747916438761,5.61797752,178.0,177.95,64.42]
[1747916439133,38.34430957,178.0,177.95,64.42]
[1747916440157,4.19334681,177.99,177.95,64.42]
[1747916441358,4.19334681,177.98,177.95,64.42]
[1747916442050,5.61892453,177.97,177.95,64.42]
[1747916442961,5.61892453,177.97,177.95,38.42]
[1747916444159,24.26794202,177.99,177.95,38.42]
[1747916444553,4.19156081,177.98,177.95,38.42]
[1747916445073,4.19156081,177.97,177.95,38.42]
[1747916445953,24.26794202,177.99,177.95,38.42]
[1747916446738,5.61892453,177.97,177.95,38.42]
[1747916448853,14.04302106,178.03,177.96,33.68]
[1747916449078,5.61734636,178.02,177.96,33.68]
[1747916449568,4.19093617,178.01,177.96,33.68]
[1747916450469,5.61734636,178.02,177.96,33.68]
[1747916451174,52.38508354,178.04,177.96,33.68]
[1747916451554,4.19089436,178.03,177.96,33.68]
[1747916452258,4.19089436,178.02,177.96,33.68]
[1747916452656,4.19089436,178.02,177.96,39.29919915]
[1747916452872,4.19089436,178.02,177.99,26.0]
[1747916453073,5.61671534,178.04,178.0,59.68]
[1747916453373,5.61608446,178.06,178.01,38.76]
[1747916454174,4.18954942,178.05,178.01,38.76]
[1747916454865,9.80609201,178.05,178.01,38.76]
[1747916455170,4.18954942,178.04,178.01,38.76]
[1747916455980,33.73422549,178.05,178.01,38.76]
[1747916456271,32.72633205,178.04,177.98,72.44]
[1747916457157,9.80678952,178.03,177.98,72.44]
[1747916457873,5.61703083,178.03,177.98,72.44]
[1747916459873,5.61703083,178.03,177.99,33.68]
[1747916460869,4.19059944,178.02,177.99,33.68]
[1747916461064,5.61766192,178.01,177.98,38.76]
[1747916461264,5.61766192,178.01,177.99,33.68]
[1747916461579,4.19059944,178.02,177.99,33.68]
[1747916462252,5.61709645,178.03,177.99,33.68]
[1747916462457,19.69276765,178.06,177.99,33.68]
[1747916462979,14.07668319,178.05,177.99,33.68]
[1747916463174,18.26783924,178.05,177.99,33.68]
[1747916463381,14.07668319,178.03,177.99,33.68]
[1747916464155,4.19115605,178.02,177.99,33.68]
[1747916464982,5.61766192,178.01,177.99,33.68]
[1747916465190,9.80881797,178.01,177.99,33.68]
[1747916466165,5.61766192,178.01,177.99,33.68]
[1747916467289,24.26699522,178.02,177.99,33.68]
[1747916467581,38.34367841,178.02,177.99,33.68]
[1747916467795,5.61734636,178.02,177.99,33.68]
[1747916467963,5.61639988,178.05,177.99,59.68]
[1747916468669,5.61576907,178.07,177.99,65.29828342]
[1747916469084,4.19237419,178.06,177.99,65.29828342]
[1747916469368,9.80845965,178.06,178.02,26.0]
[1747916469676,9.80845965,178.06,178.03,33.68]
[1747916469983,4.19237419,178.05,178.03,33.68]
[1747916471067,5.61576907,178.07,178.03,33.68]
[1747916471809,4.19178311,178.06,178.03,33.68]
[1747916472701,9.80809997,178.06,178.03,33.68]
[1747916472990,5.61631686,178.06,178.03,33.68]
[1747916474791,5.61576907,178.07,178.03,33.68]
[1747916475684,4.19010788,178.06,178.03,33.68]
[1747916476374,5.61576907,178.07,178.03,33.68]
[1747916476887,44.64964886,178.1,178.03,39.29698995]
[1747916477093,5.61522447,178.09,178.04,38.74]
[1747916477290,4.18894624,178.08,178.04,38.74]
[1747916478284,4.18894624,178.07,178.04,38.74]
[1747916478880,9.80491643,178.07,178.04,38.74]
[1747916479196,5.61597019,178.07,178.04,38.74]
[1747916480475,72.76355272,178.1,178.04,38.74]
[1747916480476,5.61513841,178.09,178.04,38.74]
[1747916480876,4.18674394,178.08,178.04,38.74]
[1747916481107,5.61576907,178.07,178.04,38.74]
[1747916481888,5.61513841,178.09,178.04,38.74]
[1747916482487,142.51478231,178.11,178.04,44.35663492]
[1747916482687,136.9,178.11,178.04,70.35663492]
[1747916482881,18.64964886,178.16,178.07,26.0]
[1747916483082,5.61324726,178.15,178.08,39.29545372]
[1747916483272,4.18400379,178.14,178.08,39.29545372]
[1747916484100,5.61324726,178.15,178.08,39.29545372]
[1747916484283,24.26226602,178.17,178.08,39.29545372]
[1747916484481,24.26226602,178.17,178.11,26.0]
[1747916484718,24.26226602,178.17,178.12,33.68]
[1747916486018,5.61261716,178.17,178.12,33.68]
[1747916486171,142.51234208,178.18,178.12,33.68]
[1747916486786,5.61135738,178.21,178.12,39.29412447]
[1747916487000,5.61135738,178.21,178.15,26.0]
[1747916487204,19.68772572,178.22,178.16,33.66]
[1747916487499,18.64964886,178.21,178.17,38.28]
[1747916488188,5.61104253,178.22,178.17,38.28]
[1747916489080,18.64964886,178.25,178.17,38.28]
[1747916489279,24.25974703,178.25,178.17,38.28]
[1747916489501,5.61009817,178.25,178.17,39.821]
[1747916489680,24.25974703,178.25,178.17,39.821]
[1747916490810,32.72633205,178.24,178.17,39.821]
[1747916490992,14.07668319,178.23,178.2,26.0]
[1747916491178,24.26132113,178.2,178.16,71.92]
[1747916491381,18.64964886,178.19,178.16,71.92]
[1747916491681,18.64964886,178.19,178.16,97.92]
[1747916492893,14.07668319,178.18,178.1,6.3851]
[1747916493091,24.26254917,178.17,178.11,71.92]
[1747916493309,5.61290031,178.17,178.14,26.0]
[1747916493718,5.61237186,178.18,178.11,77.53438954]
[1747916494009,5.61237186,178.18,178.14,26.0]
[1747916494189,5.61237186,178.18,178.15,33.66]
[1747916494381,5.61237186,178.18,178.17,26.0]
[1747916495091,5.61201558,178.19,178.17,26.0]
[1747916497700,24.26166444,178.19,178.17,26.0]
[1747916497909,18.64964886,178.18,178.15,97.92]
[1747916498296,18.64964886,178.18,178.15,64.26]
[1747916499491,5.61261716,178.17,178.15,64.26]
[1747916502318,5.61261716,178.17,178.15,38.26]
[1747916502498,18.64964886,178.16,178.09,1.5491]
[1747916502706,32.72633205,178.16,178.11,38.26]
[1747916503110,18.64964886,178.14,178.11,38.26]
[1747916503318,18.64964886,178.16,178.11,71.92]
[1747916503627,24.26278126,178.16,178.11,71.92]
[1747916505623,5.6131324,178.16,178.11,71.92]
[1747916506007,5.6131324,178.16,178.11,77.53447924]
[1747916506210,5.61230216,178.18,178.11,77.53447924]
[1747916506725,5.61200422,178.19,178.11,77.53447924]
[1747916507112,142.51170236,178.2,178.11,77.53447924]
[1747916507508,142.51170236,178.2,178.14,26.0]
[1747916507702,142.51170236,178.2,178.15,33.66]
[1747916507903,5.61170236,178.2,178.15,33.66]
[1747916508905,5.61135738,178.21,178.15,33.66]
[1747916511001,33.71643403,178.21,178.15,33.66]
[1747916511403,32.72633205,178.2,178.15,33.66]
[1747916511635,32.72633205,178.2,178.15,72.1]
[1747916512126,18.64964886,178.2,178.15,72.1]
[1747916512838,5.6119872,178.19,178.15,72.1]
[1747916513512,5.6119872,178.19,178.16,33.64]
[1747916514939,5.61167227,178.2,178.16,33.64]
[1747916516437,5.61144197,178.21,178.16,33.64]
[1747916518333,5.61144197,178.21,178.16,39.25290269]
[1747916519040,5.61104253,178.22,178.16,33.64]
[1747916520241,14.07668319,178.2,178.16,33.64]
[1747916520414,14.07668319,178.17,178.15,38.44]
[1747916520609,32.72633205,178.16,178.15,38.44]
[1747916521350,38.33926424,178.16,178.15,38.44]
[1747916522950,18.64964886,178.15,178.11,33.64]
[1747916523127,32.72633205,178.15,178.11,33.64]
[1747916523327,5.61356236,178.14,178.11,33.64]
[1747916525336,5.61324726,178.15,178.11,33.64]
[1747916525948,4.18597907,178.14,178.1,38.44]
[1747916526122,4.18597907,178.14,178.1,72.1]
[1747916526452,18.26266226,178.14,178.1,38.44]
[1747916526617,18.26266226,178.14,178.1,72.1]
[1747916527018,18.26266226,178.13,178.1,38.44]
[1747916527515,0.10232678,178.11,178.1,38.44]
[1747916530128,5.71683466,178.11,178.1,38.44]
[1747916531643,0.10232678,178.11,178.1,38.44]
[1747916531820,0.10232678,178.11,178.1,64.44]
[1747916533946,0.01812327,178.12,178.1,38.44]
[1747916534146,0.10687184,178.15,178.13,26.0]
[1747916534456,0.10687184,178.15,178.14,59.66]
[1747916536432,0.10687184,178.15,178.14,65.27356236]
[1747916544243,0.1012141,178.16,178.14,156.27571421]
[1747916544453,0.1012141,178.16,178.15,8.00215185]
[1747916545329,0.10686052,178.18,178.17,26.0]
[1747916545531,0.10686052,178.18,178.17,64.78]
[1747916546339,0.10686052,178.18,178.17,70.39261716]
[1747916547667,0.21268742,178.18,178.17,74.8051179]
[1747916548538,0.1058269,178.18,178.17,74.8051179]
[1747916551268,0.1058269,178.18,178.17,36.0251179]
[1747916551467,0.1058269,178.18,178.17,108.4451179]
[1747916552684,0.1058269,178.18,178.17,74.8051179]
[1747916552979,0.1058269,178.18,178.17,108.4451179]
[1747916554955,0.1058269,178.18,178.17,69.19250074]
[1747916555172,0.1058269,178.18,178.17,98.42]
[1747916555364,0.1058269,178.18,178.17,72.42]
[1747916555563,0.1058269,178.18,178.17,98.42]
[1747916559466,0.1058269,178.18,178.17,104.03261716]
[1747916559869,0.1058269,178.18,178.17,78.03261716]
[1747916561483,0.1058269,178.18,178.17,44.39261716]
[1747916561696,0.1058269,178.18,178.17,72.42]
[1747916561907,5.71812906,178.18,178.17,72.42]
[1747916562378,5.71812906,178.18,178.17,38.78]
[1747916563395,0.1058269,178.18,178.17,38.78]
[1747916563766,5.71812906,178.18,178.17,38.78]
[1747916565484,0.1058269,178.18,178.17,38.78]
[1747916567701,5.83008586,178.18,178.17,38.78]
[1747916567898,5.83008586,178.18,178.17,72.42]
[1747916568490,5.72425896,178.18,178.17,72.42]
[1747916569781,0.1119568,178.18,178.17,72.42]
[1747916569985,5.72425896,178.18,178.17,72.42]
[1747916571290,0.1119568,178.18,178.17,72.42]
[1747916571698,5.72425896,178.18,178.17,72.42]
[1747916572201,0.1119568,178.18,178.17,72.42]
[1747916573611,18.64964886,178.15,178.06,46.63835554]
[1747916573780,14.07668319,178.12,178.07,33.64]
[1747916573975,14.07668319,178.1,178.06,46.63835554]
[1747916574211,14.07668319,178.08,178.06,46.63835554]
[1747916574393,14.07668319,178.07,178.06,46.63835554]
[1747916574903,14.07668319,178.08,178.06,46.63835554]
[1747916575101,18.64964886,178.13,178.06,38.66]
[1747916575102,14.07668319,178.07,178.06,38.66]
[1747916575289,14.07668319,178.08,178.06,38.66]
[1747916575479,18.64964886,178.13,178.06,38.66]
[1747916575676,5.61545372,178.08,178.06,38.66]
[1747916581085,19.69213691,178.08,178.06,38.66]
[1747916581503,32.72633205,178.07,178.06,38.66]
[1747916581708,18.64964886,178.07,178.06,38.66]
[1747916581892,24.26541793,178.07,178.06,38.66]
[1747916583183,5.61576907,178.07,178.06,38.66]
[1747916583383,136.9,178.09,178.06,38.66]
[1747916583803,142.51520468,178.09,178.06,38.66]
[1747916585607,142.51520468,178.09,178.06,72.32]
[1747916587000,136.9,178.09,178.06,72.32]
[1747916587196,5.61445475,178.12,178.06,72.32]
[1747916587393,0.10628649,178.07,178.06,72.32]
[1747916587918,0.10628649,178.07,178.0,7.85202351]
[1747916588086,5.61608446,178.06,178.01,72.34]
[1747916589388,5.72214192,178.07,178.01,72.34]
[1747916589589,14.07668319,178.05,178.01,38.68]
[1747916589787,14.07668319,178.02,177.97,209.92]
[1747916590103,14.07668319,178.02,177.96,38.68]
[1747916590104,19.69497635,177.99,177.96,38.68]
[1747916590316,5.61829316,177.99,177.96,38.68]
[1747916594619,19.69497635,177.99,177.96,38.68]
[1747916595452,18.64964886,177.96,177.88,33.68]
[1747916595749,14.07668319,177.92,177.88,33.68]
[1747916596113,20.24264886,177.94,177.88,33.68]
[1747916596347,5.62050359,177.92,177.88,33.68]